Cogmind - Beta 13 X1 @@@ ROGUE MODE // 2023.06.25 @ 12:12:11 Player: Shadow Pussy wanter Result: Destroyed by Autobeam Turret with Autobeam Performance ------------- Evolutions (0) 0 Regions Visited (3) 600 Robots Destroyed (15) 75 Value Destroyed (483) 483 Prototype IDs (0) 0 Alien Tech Used (0) 0 Bonus (0) 0 TOTAL SCORE: 1158 Bonus ------- None Cogmind --------- Core Integrity 0/250 Matter 300/300 Energy 125/125 System Corruption 0% Temperature Cool (24) Movement Treading (160) Location -10/Subcaves Parts ------- > --- POWER (1) -------- Light Ion Engine > --- PROPULSION (2) --- Light Treads Aluminum Leg > --- UTILITY (2) ------ Improved Heat Sink Small Storage Unit > --- WEAPON (2) ------- Subdweller Laser Battle Rifle > --- INVENTORY (8) ---- Wheel Improved Terrain Scanner Small Laser Subdweller Machine Gun Grenade Launcher Scrap Shield Fragment (45) Peak State ------------ > --- POWER ------------ Light Ion Engine > --- PROPULSION ------- Aluminum Leg Aluminum Leg > --- UTILITY ---------- Improved Heat Sink Small Storage Unit > --- WEAPON ----------- Subdweller Laser Subdweller Machine Gun > --- INVENTORY -------- Light Ion Engine Light Treads Wheel Wheel Improved Terrain Scanner Small Laser Grenade Launcher Scrap Shield Fragment [Rating: 12] Favorites ----------- Power Light Ion Engine Engine Light Ion Engine Propulsion Aluminum Leg Treads Light Treads Leg Aluminum Leg Wheel Wheel Utility Small Storage Unit Device Improved Heat Sink Storage Small Storage Unit Weapon Small Laser Energy Gun Small Laser Ballistic Gun Subdweller Machine Gun Build | -11 -10 -10 -10 ------- Run | Jun Mat Min Sub Slots Evolved . | . . . . Power . | . . . . Propulsion . | . . . . Utility . | . . . . Weapon . | . . . . Parts Attached 15 | 6 2 . 7 Power 4 | 1 1 . 2 Engine 4 | 1 1 . 2 Core . | . . . . Reactor . | . . . . Propulsion 4 | 2 . . 2 Treads 1 | . . . 1 Leg 2 | 2 . . . Wheel 1 | . . . 1 Hover . | . . . . Flight . | . . . . Utility 2 | 1 1 . . Device 1 | . 1 . . Storage 1 | 1 . . . Processor . | . . . . Hackware . | . . . . Protection . | . . . . Artifact . | . . . . Weapon 5 | 2 . . 3 Energy Gun 3 | 2 . . 1 Energy Cannon . | . . . . Ballistic Gun 2 | . . . 2 Ballistic Cannon . | . . . . Launcher . | . . . . Special Weapon . | . . . . Impact Weapon . | . . . . Slashing Weapon . | . . . . Piercing Weapon . | . . . . Special Melee Weapon . | . . . . Unidentified Prototypes . | . . . . Parts Lost 4 | . . . 4 Power 2 | . . . 2 Propulsion 2 | . . . 2 Utility . | . . . . Weapon . | . . . . Highest Loss Streak 1 | . . . 1 To Critical Strikes . | . . . . Average Slot Usage (%) 96 | . 90 100 96 Engine 13 | . 14 14 13 Leg 22 | . 28 28 18 Wheel 3 | . . . 5 Device 12 | . 5 14 14 Storage 14 | . 14 14 14 Energy Gun 20 | . 28 28 15 Ballistic Gun 7 | . . . 12 Naked Turns . | . . . . Heaviest Build 17 | 10 13 13 17 Greatest Support 20 | 20 20 20 20 Greatest Overweight (x) 5 | . . . 5 Average Overweight (x) . | . . . . Largest Inventory Capacity 8 | 8 8 8 8 Average Capacity 7 | 7 8 8 8 Most Carried 8 | 7 8 8 8 Average Carried 7 | 3 7 8 6 Final Capacity 8 | 8 8 8 8 Final Carried 8 | 7 8 8 6 Class Distribution -------------------- 100% | Mutant Dominant Class ---------------- Mutant | -10/Materials Mutant | -10/Mines Mutant | -10/Subcaves Resources | -11 -10 -10 -10 ----------- Run | Jun Mat Min Sub Matter Collected 389 | 194 62 . 133 Remotely . | . . . . Salvage Created 485 | 21 85 40 339 Parts 36 | 2 4 5 25 Haulers Intercepted . | . . . . Recyclers Shooed . | . . . . Parts Field Recycled . | . . . . Retrieved Matter . | . . . . Parts Self-Destructed . | . . . . Prevented . | . . . . Kills | -11 -10 -10 -10 ------- Run | Jun Mat Min Sub Combat Hostiles Destroyed 14 | . 2 3 9 Guns 14 | . 2 3 9 Classes Destroyed 5 | 1 1 1 2 Tunneler 1 | 1 . . . Swarmer 3 | . . 3 . Grunt 2 | . 2 . . Sentry 1 | . . . 1 Subdweller 8 | . . . 8 Best Kill Streak 2 | 1 2 2 2 Combat Bots Only 2 | . 2 2 2 Max Kills in Single Turn 1 | 1 1 1 1 Gunslinging . | . . . . Exploded . | . . . . Melee . | . . . . Uniques/NPCs Destroyed . | . . . . Combat | -11 -10 -10 -10 -------- Run | Jun Mat Min Sub Damage Taken 822 | . 89 49 684 Core 253 | . 13 6 234 Absorbed by Shields . | . . . . Core Remaining (%) 100 | 100 . . . Volleys Fired 69 | 6 9 4 50 Largest 2 | 2 2 2 2 Hottest 90 | 80 80 80 90 Shots Fired 130 | 12 18 8 92 Gun 130 | 12 18 8 92 Cannon . | . . . . Launcher . | . . . . Special . | . . . . Kinetic 36 | . . . 36 Thermal 94 | 12 18 8 56 Explosive . | . . . . Electromagnetic . | . . . . Robot Hit Streak 16 | 4 10 5 16 Robot Miss Streak 3 | 2 1 1 3 Penetration Max . | . . . . Secondary Targets 1 | . . . 1 Max Gunslinging Chain 1 | . . . 1 Shots Hit Robots 91 | 8 14 5 64 Core Hits 30 | 1 6 4 19 Critical Kills 1 | . . . 1 Critical Parts Destroyed 1 | . . . 1 Critical Strikes 4 | . . . 4 Destroy 4 | . . . 4 Melee Attacks . | . . . . Impact . | . . . . Slashing . | . . . . Piercing . | . . . . Sneak Attacks . | . . . . Combat Hostiles . | . . . . Follow-up Attacks . | . . . . Damage Inflicted 1523 | 97 155 69 1202 Guns 1509 | 90 155 62 1202 Cannons . | . . . . Explosions . | . . . . Melee . | . . . . Ramming 14 | 7 . 7 . Kinetic 552 | . . . 552 Thermal 957 | 90 155 62 650 Explosive . | . . . . Electromagnetic . | . . . . Impact . | . . . . Slashing . | . . . . Piercing . | . . . . Highest Corruption . | . . . . Average Corruption . | . . . . Corruption Purged . | . . . . Corruption Blocked . | . . . . Overload Shots . | . . . . Overflow Damage . | . . . . Projectiles . | . . . . Explosions . | . . . . Melee . | . . . . Knockbacks . | . . . . Impact . | . . . . Kinetic . | . . . . Secondary . | . . . . Self-Inflicted Damage . | . . . . Shots . | . . . . Rammed . | . . . . Targets Rammed 7 | 5 . 2 . Kicked 7 | 5 . 2 . Crushed . | . . . . Highest Temperature 198 | 108 198 . . Average Temperature 83 | 55 103 . . Received Heat Transfer 111 | . 54 . 57 Siege Activations . | . . . . Robots Corrupted . | . . . . Combat Hostiles . | . . . . Parts Fried . | . . . . Impact Corruptions . | . . . . Robots Melted . | . . . . Combat Hostiles . | . . . . Parts Melted 1 | . 1 . . Heat Transferred 1625 | 200 350 125 950 Parts Sabotaged . | . . . . Parts Stolen . | . . . . Parts Stripped . | . . . . Power Chain Reactions . | . . . . Missiles Intercepted . | . . . . Alert | -11 -10 -10 -10 ------- Run | Jun Mat Min Sub Peak Influence 136 | 5 93 136 . Initial 36 | . 3 36 . Average 58 | . 42 104 . Maximum Alert Level . | . . . . Low Security (%) 100 | 100 100 100 . Level 1 . | . . . . Level 2 . | . . . . Level 3 . | . . . . Level 4 . | . . . . Level 5 . | . . . . High Security . | . . . . Max Security . | . . . . Squads Dispatched . | . . . . Investigation . | . . . . Extermination . | . . . . Reinforcement . | . . . . Assault . | . . . . Garrison . | . . . . Intercept . | . . . . Searches Triggered . | . . . . Construction Impeded . | . . . . Haulers Reinforced . | . . . . Active Scanning Responses . | . . . . Cargo Convoy Interrupts . | . . . . Stealth | -11 -10 -10 -10 --------- Run | Jun Mat Min Sub Distress Signals . | . . . . Communications Jammed . | . . . . Distress Signals . | . . . . Times Spotted 18 | . 3 4 11 Peak Tracking Total 3 | . 2 3 2 Tactical Retreats 2 | . . 1 1 Traps | -11 -10 -10 -10 ------- Run | Jun Mat Min Sub Traps Triggered . | . . . . Indirectly . | . . . . Trap Hack Attempts . | . . . . Triggered . | . . . . Disarmed . | . . . . Reprogrammed . | . . . . Reused . | . . . . Traps Extracted . | . . . . Installed . | . . . . Triggered . | . . . . Machines | -11 -10 -10 -10 ---------- Run | Jun Mat Min Sub Machines Disabled . | . . . . Max in Single Turn . | . . . . Machines Repaired . | . . . . Machines Sabotaged . | . . . . Overloaded Fab Kills . | . . . . Hacking | -11 -10 -10 -10 --------- Run | Jun Mat Min Sub Machines Accessed 3 | . 3 . . Terminals 3 | . 3 . . Fabricators . | . . . . Repair Stations . | . . . . Recycling Units . | . . . . Scanalyzers . | . . . . Garrison Access . | . . . . Total Hacks 14 | . 14 . . Successful 6 | . 6 . . Failed 8 | . 8 . . Catastrophic . | . . . . Database Lockouts . | . . . . Manual 12 | . 12 . . Terminals 14 | . 14 . . Fabricators . | . . . . Repair Stations . | . . . . Recycling Units . | . . . . Scanalyzers . | . . . . Garrison Access . | . . . . Terminal Hacks 3 | . 3 . . Robot Analysis 2 | . 2 . . Branch Access Points 1 | . 1 . . Fabricator Hacks . | . . . . Repair Station Hacks . | . . . . Recycling Unit Hacks . | . . . . Scanalyzer . | . . . . Garrison Access Hacks . | . . . . Unauthorized Hacks 3 | . 3 . . Terminals 3 | . 3 . . Botnet 3 | . 3 . . Fabricators . | . . . . Repair Stations . | . . . . Recycling Units . | . . . . Scanalyzers . | . . . . Garrison Access . | . . . . Data Cores Recovered . | . . . . Used . | . . . . Hacking Detections 3 | . 3 . . Full Trace Events . | . . . . Feedback Events . | . . . . Feedback Blocked . | . . . . Robot Schematics Acquired . | . . . . Robots Built . | . . . . Authchips . | . . . . Time . | . . . . Total Robot Build Rating . | . . . . Part Schematics Acquired . | . . . . Parts Built . | . . . . Authchips . | . . . . Time . | . . . . Total Part Build Rating . | . . . . Parts Repaired . | . . . . Time . | . . . . Parts Recycled . | . . . . Recycled Matter . | . . . . Retrieved Matter . | . . . . Retrieved Components . | . . . . Parts Scanalyzed . | . . . . Part Schematics Acquired . | . . . . Parts Damaged . | . . . . Bothacking | -11 -10 -10 -10 ------------ Run | Jun Mat Min Sub Used RIF Installer . | . . . . Robots Hacked . | . . . . Non-combat . | . . . . Combat . | . . . . Robot Hacks Applied . | . . . . Relay Couplers Released . | . . . . Fabnet Peak Effective % . | . . . . Robots Rewired . | . . . . Allies Hacked . | . . . . Hacks Repelled . | . . . . Allies | -11 -10 -10 -10 -------- Run | Jun Mat Min Sub Total Allies . | . . . . Largest Group . | . . . . Highest-Rated Group . | . . . . Highest-Rated Ally . | . . . . Total Orders . | . . . . Ally Attacks . | . . . . Total Damage . | . . . . Kills . | . . . . Allies Corrupted . | . . . . Allies Melted . | . . . . Intel | -11 -10 -10 -10 ------- Run | Jun Mat Min Sub Robot Analysis Total 2 | . 2 . . Derelict Logs Recovered 3 | . . 2 1 Drone Launches . | . . . . Drone Recoveries . | . . . . Exploration | -11 -10 -10 -10 ------------- Run | Jun Mat Min Sub Turns Passed 1156 | 111 217 220 608 Spaces Moved 707 | 62 150 146 349 Core 10 | 4 . . 6 Treads 23 | . . . 23 Legs 483 | 58 150 146 129 Wheels 191 | . . . 191 Hover . | . . . . Flight . | . . . . Fastest Speed 50 | 50 120 120 95 Average Speed 117 | 115 120 120 115 Slowest Speed 300 | 120 120 120 300 Overloaded Moves . | . . . . Propulsion Burnouts . | . . . . Robots Hopped . | . . . . Cave-ins Triggered . | . . . . Exploration Rate (%) 26 | 4 34 48 19 Regions Visited 3 Branch Regions 2 Pre-discovered Areas 4 | . . 3 1 Known Exits Taken 1 | . 1 . . Unknown Exits Taken 2 | 1 . 1 . Scrap Searched . | . . . . Spaces Dug . | . . . . Terrain Destroyed . | . . . . Melee . | . . . . Projectile . | . . . . AOE . | . . . . Terrain Rammed . | . . . . Walls Destroyed . | . . . . Machines Disabled . | . . . . Actions | -11 -10 -10 -10 --------- Run | Jun Mat Min Sub Total 899 | 85 168 182 464 Wait 92 | . 8 31 53 Move 704 | 61 149 145 349 Hop . | . . . . Pick Up 9 | 7 . . 2 Fast Attach 8 | 6 1 . 1 Attach 4 | . . . 4 Detach . | . . . . Swap 3 | . 1 . 2 Drop 3 | . . . 3 Fire 69 | 6 9 4 50 Melee . | . . . . Ram . | . . . . Kick 7 | 5 . 2 . Crush . | . . . . Escape Stasis . | . . . . Rewire . | . . . . Trap . | . . . . Miscellaneous . | . . . . Route ------- -11/Junkyard -10/Materials (discovered 2 exits: *Min x2) -10/Mines -10/Subcaves (discovered 1 exit: [*Rec]) History --------- Turn | Location | Event 20 | -11/Junkyard | Discovered new exit (range 15) 112 | -11/Junkyard | Entered Materials 278 | -10/Materials | Discovered new exit (range 11) 279 | -10/Materials | Identified exit to Mines 301 | -10/Materials | Build established: Mutant 329 | -10/Materials | Entered Mines 339 | -10/Mines | Learned location of Mines (-9) 387 | -10/Mines | Met a Derelict bent on vengeance 399 | -10/Mines | Learned location of Storage (-7) 535 | -10/Mines | Discovered new exit (range 5) 549 | -10/Mines | Entered Subcaves 606 | -10/Subcaves | Shifting Twisted Machinery released Sub. Laser 641 | -10/Subcaves | Shifting Twisted Machinery released Sub. Machine Gun 654 | -10/Subcaves | Learned location of Mines (-10) 842 | -10/Subcaves | Core integrity fell below 50% 873 | -10/Subcaves | A swath of the cavern ceiling suddenly collapsed 1072 | -10/Subcaves | Core integrity fell below 20% 1156 | -10/Subcaves | Discovered new exit (range 13) 1157 | -10/Subcaves | Destroyed by Autobeam Turret with Autobeam Last Messages --------------- 01004_ K1-OG9(R): "SUBMAD!" 01020_ K1-OG9(R) suffers critical hit (Destroy). 01023_ K1-OG9(R) destroyed. 01030_ Acquired 6 matter. 01034_ A6-ZO3(R): "SUBSUB!" 01036_ Wheel destroyed. 01056_ A6-ZO3(R) affixes Scrap Shield Fragment to Scrap Shield. 01074_ A6-ZO3(R) destroyed. 01080_ Acquired 14 matter. 01086_ Acquired 10 matter. 01087_ E9-DNM(R): "SUBMAD!" 01112_ Acquired 7 matter. 01112_ E9-DNM(R) affixes Scrap Shield Fragment to Scrap Shield. 01113_ E9-DNM(R) suffers critical hit (Destroy). 01116_ Destroyed Sub. Machine Gun. 01119_ E9-DNM(R) affixes Scrap Shield Fragment to Scrap Shield. 01119_ E9-DNM(R) destroyed. 01122_ Acquired 13 matter. 01127_ Acquired 10 matter. 01156_ EXIT=FOUND Map ----- +----------------------------------------------------+ | ?#" #### ## ### "= "" #### "&#" | | "" ## # #""""###??##### #"## | | """ ### ### ## ########??????#####" | | " ### ###?# ### ##??# ##???????###" | | ### ### ??## #?### #??# ########?### | | #?#####?# ### ##???### #### # ## #?# # | | #?????# ##??????# ### % ### # | | ?????# ##### ##??????## ## % ## | | ?????? ??# ##???????# # | | ?????? # ??## #????????# ##### # % | | ??#?? ## #?## ##????????###### ### # | | ??# ??###?# ##??????????????### #### | | ##" #### ## ####?????????#????# #??? | | # ##??????##<##### #### ######??? | | # #??????"" """"# #??###???????? | | # #?????? " " "# ##????????????? | | # ##?????? t t "## ##?????????????? | | ## ##??????? ??###??????????????? | | ??# ###?????? ???????????????????? | | # ???## #?????? ????????????????????? | | #????# ##??????# #????????????????????? | | # ## [ !######??# #????????????????????? | | &% #??# #????????????????????? | | #??# #????????????????????? | | ## %! ##??# #????????????????????? | | #### ##/%= #?###@ #????????????????????? | | ?# ! ! ### #????????????????????? | | # ! #????????????????????? | | #=% ## ### #????????????????????? | | ??## #??###????????????????????? | | ? ????# #???????????????????????? | | ??????# #??????????????????????? | | ????? #??????????????????????? | | ????# ## ?????????????????????? | | ????# ####?# ????????????????????? | | ????# #?????# ??????????????????? | | ???? ?????# #### ?????????????????? | | ??? ?????# #??? ### ????????????????? | | ??????????# "???##?? ###???????????????? | | ??????????### "???????? ##?????????????????? | | ????????????# "?????????##??????????????????? | | ???????????? ??????????????????????????????? | | ?????????????? ??????????????????????????????? | | ?????????????????????????????????????????????????? | | ?????????????????????????????????????????????????? | | ?????????????????????????????????????????????????? | | ?????????????????????????????????????????????????? | | ?????????????????????????????????????????????????? | | ?????????????????????????????????????????????????? | | ?????????????????????????????????????????????????? | +----------------------------------------------------+ Best States ------------- Heat Dissipation 39 Energy Generation 10 Energy Capacity 250 Matter Stores 300 Matter Capacity 300 Sight Range 16 Terrain Scan Density 10 Evasion (%) 55 Recoil Reduction 1 Item Schematics ----------------- None Robot Schematics ------------------ None Fabricated ------------ Nothing Alien Tech Used ----------------- None Achievements -------------- None Challenges ------------ None Game ------ Seed TerrabombLargeDissipator Manual? 0 Play Time 00:10:12 Cumulative 142.3 hours Start 2023.06.25 @ 12:05:33 End 2023.06.25 @ 12:12:11 Sessions 1 Manual Loads 0 Difficulty Rogue Special Mode None Game No. 195 Rogue 195 Adventurer 0 Explorer 0 Win Type - Total 2 Types 2/0/0/0/0/0/0/0/0 Lore% 60 Gallery% 67 Achievement% 53 Wizard Run 0 Options --------- ASCII 0 Keyboard 0 Movement Numpad Keybinds 0 Fullscreen 1 Font 18/SmallcapsGlow Map View 76x50 Tactical HUD 1 Map Filters NONE Filters NONE Steam 1 RUN: 00ea0a08-2ac2-4366-81b9-6f38d39b36c9